bitfinex/quotes_BTCUSD_20250320
["timestamp","ask_amount","ask_price","bid_price","bid_amount"]
[1742469324804,0.43162183,85410.0,85409.0,1e-08]
[1742469325456,0.45502771,85410.0,85409.0,1e-08]
[1742469325866,0.47339111,85410.0,85409.0,1e-08]
[1742469326515,0.47339111,85410.0,85409.0,0.00100001]
[1742469327805,0.3304102,85410.0,85409.0,0.00100001]
[1742469330551,0.0187022,85410.0,85409.0,0.00100001]
[1742469330818,0.0187022,85410.0,85409.0,0.01270801]
[1742469333500,0.0003388,85410.0,85409.0,0.01270801]
[1742469336319,0.01870064,85410.0,85409.0,0.01270801]
[1742469337621,0.01870064,85410.0,85409.0,0.62782271]
[1742469337842,0.01870064,85410.0,85409.0,0.67308124]
[1742469339479,0.01870064,85410.0,85409.0,0.67208124]
[1742469339642,0.01870064,85410.0,85409.0,0.67308124]
[1742469340047,0.01970064,85410.0,85409.0,0.67508124]
[1742469340664,0.01870064,85410.0,85409.0,0.67308124]
[1742469340883,0.0003388,85410.0,85409.0,0.68662209]
[1742469341066,0.0013388,85410.0,85409.0,2.18862209]
[1742469341224,0.0023388,85410.0,85409.0,2.19162209]
[1742469342218,0.0023388,85410.0,85409.0,3.18742209]
[1742469342430,8e-07,85410.0,85409.0,3.21242209]
[1742469343186,8e-07,85410.0,85409.0,3.21042209]
[1742469343506,0.0010008,85410.0,85409.0,3.21242209]
[1742469344720,0.001,85410.0,85409.0,3.20942209]
[1742469344867,0.001,85410.0,85409.0,3.21542209]
[1742469345069,0.0003388,85424.0,85423.0,0.545834]
[1742469345277,0.0003388,85424.0,85423.0,0.78900903]
[1742469345918,0.0003388,85424.0,85423.0,2.28900903]
[1742469346723,0.0003388,85424.0,85423.0,2.29500903]
[1742469347098,0.0003388,85424.0,85423.0,2.28900903]
[1742469347573,0.0003388,85424.0,85423.0,2.30100903]
[1742469347951,0.0003388,85424.0,85423.0,2.71590723]
[1742469348164,0.0001693,85453.0,85424.0,0.3]
[1742469348381,0.0001693,85453.0,85452.0,0.245751]
[1742469348617,0.0001693,85453.0,85451.0,0.23405]
[1742469348847,0.0001693,85453.0,85450.0,0.234052]
[1742469348848,0.01852294,85453.0,85450.0,0.234052]
[1742469349778,0.01858655,85453.0,85450.0,0.234052]
[1742469349962,0.01858655,85453.0,85451.0,0.245752]
[1742469350158,0.01858655,85453.0,85452.0,0.011702]
[1742469350686,0.01858655,85453.0,85452.0,0.001]
[1742469350890,0.01858655,85453.0,85450.0,0.247754]
[1742469351208,0.01858655,85453.0,85451.0,0.011702]
[1742469351423,0.01858655,85453.0,85451.0,0.001]
[1742469351627,0.23427891,85453.0,85452.0,0.002]
[1742469351767,0.00023291,85453.0,85452.0,0.002]
[1742469351967,0.01193491,85453.0,85452.0,0.002]
[1742469352207,0.09503491,85453.0,85452.0,0.002]
[1742469353526,0.234049,85452.0,85447.0,0.234061]
[1742469353725,0.234049,85452.0,85451.0,0.001]
[1742469353929,0.234049,85452.0,85451.0,0.002]
[1742469354163,0.245751,85452.0,85451.0,0.002]
[1742469354307,0.011702,85450.0,85445.0,0.234068]
[1742469354502,0.245757,85450.0,85444.0,0.6606692]
[1742469354710,0.245757,85450.0,85447.0,0.001]
[1742469354909,0.26410479,85452.0,85447.0,0.235061]
[1742469355108,0.245757,85450.0,85445.0,0.011703]
[1742469355366,0.245757,85450.0,85444.0,0.4266012]
[1742469355571,0.26410579,85452.0,85446.0,0.234064]
[1742469356222,0.245756,85451.0,85445.0,0.248771]
[1742469356368,0.245762,85449.0,85445.0,0.003]
[1742469356580,0.234055,85450.0,85445.0,0.014703]
[1742469356783,0.234055,85450.0,85445.0,0.013703]
[1742469356984,0.234055,85450.0,85445.0,0.011703]
[1742469357959,0.245762,85449.0,85445.0,0.001]
[1742469358153,0.244762,85449.0,85445.0,0.003]
[1742469358637,0.011702,85449.0,85445.0,0.003]
[1742469358816,0.24576,85449.0,85445.0,0.001]
[1742469359350,0.25240379,85452.0,85446.0,0.245767]
[1742469359549,0.01835379,85452.0,85450.0,0.234053]
[1742469360146,0.01735379,85452.0,85450.0,0.234053]
[1742469360307,0.01735379,85452.0,85451.0,0.011702]
[1742469361628,0.011702,85451.0,85450.0,0.002]
[1742469361836,0.01735379,85452.0,85447.0,0.011703]
[1742469362128,0.01735379,85452.0,85450.0,0.011702]
[1742469362334,0.01735379,85452.0,85451.0,0.002]
[1742469364161,0.01735379,85452.0,85447.0,0.245765]
[1742469364377,0.25140479,85452.0,85447.0,0.245765]
[1742469364562,0.25140479,85452.0,85448.0,0.234058]
[1742469364766,0.01735379,85452.0,85449.0,0.0113872]
[1742469364961,0.01735379,85452.0,85450.0,0.234053]
[1742469365774,0.01735379,85452.0,85451.0,0.0003386]
[1742469365978,0.01752309,85452.0,85451.0,0.0003386]
[1742469366202,0.01752309,85452.0,85451.0,0.0120406]
[1742469366488,0.01652309,85452.0,85451.0,0.0120406]
[1742469366875,0.0001693,85452.0,85451.0,0.0003386]
[1742469367009,0.0001693,85452.0,85451.0,0.0120406]
[1742469367904,0.0118713,85452.0,85451.0,0.0003386]
[1742469368034,0.0001693,85452.0,85451.0,0.0003386]
[1742469368665,0.0001693,85452.0,85451.0,0.0140406]
[1742469368872,0.0001693,85452.0,85451.0,0.0023386]
[1742469369969,0.01852099,85452.0,85451.0,0.0140406]
[1742469370985,0.0001693,85452.0,85451.0,0.0140406]
[1742469372935,0.00057161,85459.0,85453.0,0.011702]
[1742469373111,0.00057161,85459.0,85453.0,0.24582654]
[1742469373291,0.01227261,85459.0,85454.0,0.011702]
[1742469373726,0.24630461,85459.0,85455.0,0.234039]
[1742469373923,0.00057161,85459.0,85458.0,0.245734]
[1742469374152,0.00157161,85459.0,85458.0,0.245734]
[1742469374359,0.01992445,85459.0,85458.0,0.245734]
[1742469374555,0.01892445,85459.0,85458.0,0.245734]
[1742469375540,0.01992445,85459.0,85458.0,0.245734]
[1742469375941,0.01992445,85459.0,85458.0,0.247734]
[1742469376909,0.01892445,85459.0,85458.0,0.247734]
[1742469377116,0.01892445,85459.0,85458.0,0.248734]
[1742469378374,0.01892445,85459.0,85458.0,0.003]
[1742469378610,0.03062545,85459.0,85458.0,0.003]
[1742469378850,0.10622545,85459.0,85458.0,0.003]
[1742469379331,0.10639475,85459.0,85458.0,0.003]
[1742469379944,0.10639475,85459.0,85458.0,0.002]
[1742469380298,0.10739475,85459.0,85458.0,0.002]
[1742469380541,0.08904191,85459.0,85458.0,0.002]
[1742469381144,0.011702,85454.0,85453.0,8.054e-05]
[1742469382353,0.245745,85455.0,85453.0,8.054e-05]
[1742469383176,0.011702,85454.0,85453.0,8.054e-05]
[1742469383386,0.012702,85454.0,85453.0,8.054e-05]
[1742469384688,0.001,85454.0,85453.0,8.054e-05]
[1742469384895,0.01835272,85454.0,85453.0,8.054e-05]
[1742469385252,0.01835272,85454.0,85453.0,0.01178254]
[1742469385540,0.01835272,85454.0,85453.0,8.054e-05]
[1742469385912,0.03005472,85454.0,85453.0,8.054e-05]
[1742469386728,0.03105472,85454.0,85453.0,8.054e-05]
[1742469387577,0.01935272,85454.0,85453.0,8.054e-05]
[1742469388201,0.01935272,85454.0,85453.0,0.23412654]
[1742469388492,0.01935272,85454.0,85453.0,8.054e-05]
[1742469388918,0.03105472,85454.0,85453.0,8.054e-05]
[1742469390430,0.03105472,85454.0,85453.0,8.054e-05]
[1742469390963,0.03105472,85454.0,85453.0,0.00041914]
[1742469393470,0.01935272,85454.0,85453.0,0.00041914]
[1742469394694,0.001,85454.0,85453.0,0.01212114]
[1742469397787,0.01935227,85454.0,85453.0,0.01212114]
[1742469398394,0.01935227,85454.0,85453.0,0.00041914]
[1742469398607,0.10735427,85454.0,85453.0,0.00041914]
[1742469400453,0.09565227,85454.0,85453.0,0.00041914]
[1742469402065,0.01935227,85454.0,85453.0,0.00041914]
[1742469402634,0.001,85454.0,85453.0,0.00041914]
[1742469402836,0.001,85454.0,85453.0,0.01212114]
[1742469405813,0.01935213,85454.0,85453.0,0.01212114]
[1742469406122,0.01835213,85454.0,85453.0,0.01212114]
[1742469406555,0.01835213,85454.0,85453.0,0.13369617]
[1742469407135,0.01835213,85454.0,85453.0,0.2122362]
[1742469407336,0.01835213,85454.0,85453.0,0.21223615]
[1742469407513,0.01835213,85454.0,85453.0,0.93013435]
[1742469407714,0.01835213,85454.0,85453.0,0.92779437]
[1742469407922,1.3e-07,85454.0,85453.0,0.95279437]
[1742469408132,0.00074091,85459.0,85458.0,0.671434]
[1742469408335,0.00074091,85459.0,85458.0,0.80554988]
[1742469408736,0.00074091,85459.0,85458.0,2.30554988]
[1742469409352,0.00074091,85459.0,85458.0,2.33054988]
[1742469409742,0.00074091,85459.0,85458.0,2.33654988]
[1742469411230,0.00074091,85459.0,85458.0,2.34254988]
[1742469412435,0.00074091,85459.0,85458.0,2.86227009]
[1742469414469,0.00074091,85459.0,85458.0,1.34772924]
[1742469414989,0.00074091,85459.0,85458.0,1.24290723]
[1742469416292,0.00074091,85459.0,85458.0,1.25744808]
[1742469416588,0.00074091,85459.0,85458.0,2.75744808]
[1742469424233,0.00074091,85459.0,85458.0,2.75144808]
[1742469424434,0.0001694,85473.0,85472.0,0.011699]
[1742469424810,0.0001694,85473.0,85472.0,1.08176461]
[1742469424986,0.0001694,85473.0,85472.0,1.07942532]
[1742469425197,0.0001694,85473.0,85472.0,1.11896617]
[1742469425404,0.0001694,85473.0,85472.0,2.66536617]
[1742469425606,0.0001694,85473.0,85472.0,2.67136617]
[1742469426236,0.0001694,85473.0,85472.0,2.66536617]
[1742469426607,0.0001694,85473.0,85472.0,2.67136617]
[1742469427575,0.0001694,85473.0,85472.0,2.65682532]
[1742469427793,0.0001694,85473.0,85472.0,2.61642532]
[1742469428772,0.0001694,85473.0,85472.0,2.61042532]
[1742469429160,0.0001694,85473.0,85472.0,2.61642532]
[1742469429755,0.0001694,85473.0,85472.0,2.59142532]
[1742469430138,0.0001694,85473.0,85472.0,2.59742532]
[1742469430726,0.0001694,85473.0,85472.0,2.59142532]
[1742469430950,0.0001694,85473.0,85472.0,1.09114595]
[1742469431195,0.0001694,85473.0,85472.0,1.10314595]
[1742469431396,0.0001694,85473.0,85472.0,2.60314595]
[1742469431598,0.0001694,85473.0,85472.0,2.59714595]
[1742469432015,0.0001694,85473.0,85472.0,2.60314595]
[1742469433021,0.0001694,85473.0,85472.0,2.61212281]
[1742469434593,0.0001694,85473.0,85472.0,1.11212281]
[1742469435181,0.0001694,85473.0,85472.0,2.61212281]
[1742469438789,0.0001694,85473.0,85472.0,2.62666366]
[1742469439887,0.0001694,85473.0,85472.0,2.61212281]
[1742469440439,0.0001694,85473.0,85472.0,2.60612281]
[1742469441646,0.0001694,85473.0,85472.0,2.61212281]
[1742469442020,0.0001694,85473.0,85472.0,2.60012281]
[1742469442228,0.0001694,85473.0,85472.0,2.60612281]
[1742469442419,0.0001694,85473.0,85472.0,2.61212281]
[1742469443816,0.0001694,85473.0,85472.0,2.60012281]
[1742469444191,0.0001694,85473.0,85472.0,2.61212281]
[1742469447568,0.0001694,85473.0,85472.0,2.60012281]
[1742469447861,0.0001694,85473.0,85472.0,1.25506366]
[1742469448060,0.0001694,85473.0,85472.0,1.29153395]
[1742469448262,0.0001694,85473.0,85472.0,2.79153395]
[1742469448824,0.0001694,85473.0,85472.0,2.74906366]
[1742469449996,0.0001694,85473.0,85472.0,2.7855428]
[1742469450198,0.0001694,85473.0,85472.0,2.7059428]
[1742469450454,0.0001694,85473.0,85472.0,2.7119428]
[1742469450831,0.0001694,85473.0,85472.0,2.7059428]
[1742469451149,0.0001694,85473.0,85472.0,2.7119428]
[1742469452006,1e-08,85479.0,85478.0,0.245676]
[1742469452214,1e-08,85479.0,85478.0,0.67979188]
[1742469452457,0.000339,85483.0,85482.0,0.545665]
[1742469452801,0.000339,85483.0,85482.0,0.66524003]
[1742469453387,0.000339,85483.0,85482.0,1.07939732]
[1742469453795,0.00075664,85483.0,85482.0,1.07939732]
[1742469453943,0.00075664,85483.0,85482.0,2.57939732]
[1742469454767,0.00075664,85483.0,85482.0,2.59139732]
[1742469457273,0.00075664,85483.0,85482.0,1.09139732]
[1742469457745,0.00211285,85483.0,85482.0,2.58755186]
[1742469458576,0.0063002,85484.0,85483.0,0.311698]
[1742469458729,0.00634194,85484.0,85483.0,0.43127303]
[1742469458925,4.174e-05,85484.0,85483.0,0.43127303]
[1742469459326,4.174e-05,85484.0,85483.0,0.84543032]
[1742469459732,0.08214174,85484.0,85483.0,0.84543032]
[1742469460134,0.12784174,85484.0,85483.0,0.84543032]
[1742469460567,0.12784174,85484.0,85483.0,0.85043032]
[1742469460761,0.12784174,85484.0,85483.0,0.85643032]
[1742469461160,0.12784174,85484.0,85483.0,2.35643032]
[1742469461643,0.12784174,85484.0,85483.0,0.42515729]
[1742469461863,0.13953974,85484.0,85483.0,0.011]
[1742469463735,0.13953974,85484.0,85483.0,0.005]
[1742469464065,0.13953974,85484.0,85483.0,0.004]
[1742469464241,0.13970914,85484.0,85483.0,0.004]
[1742469464433,0.13970914,85484.0,85483.0,0.007]
[1742469464638,0.15805646,85484.0,85483.0,0.003]
[1742469464836,0.15805646,85484.0,85483.0,0.004]
[1742469465824,0.15805646,85484.0,85483.0,0.001]
[1742469466227,0.14635846,85484.0,85483.0,0.246662]
[1742469467027,0.01855846,85484.0,85483.0,1.08039432]
[1742469467432,0.01855846,85484.0,85483.0,1.07939432]
[1742469467835,0.01855846,85484.0,85483.0,1.08139432]
[1742469468035,0.01855846,85484.0,85483.0,1.08239432]
[1742469468237,0.01855846,85484.0,85483.0,1.08139432]
[1742469468466,0.01855846,85484.0,85483.0,1.07939432]
[1742469468675,0.01855846,85484.0,85483.0,1.08539432]
[1742469468910,0.01855846,85484.0,85483.0,1.09139432]
[1742469469106,0.01855846,85484.0,85483.0,2.58539432]
[1742469469279,0.01855846,85484.0,85483.0,2.57939432]
[1742469470016,0.00021114,85484.0,85483.0,2.57939432]
[1742469470522,0.00021114,85484.0,85483.0,2.58439432]
[1742469471020,0.00021114,85484.0,85483.0,2.59039432]
[1742469472693,0.00021114,85484.0,85483.0,2.71919432]
[1742469473050,0.00021114,85484.0,85483.0,2.60234767]
[1742469475274,0.00021114,85484.0,85483.0,1.10234767]
[1742469475860,0.00021114,85484.0,85483.0,2.60234767]
[1742469476515,0.00021114,85484.0,85483.0,1.10234767]
[1742469477044,0.00021114,85484.0,85483.0,1.10268647]
[1742469482364,0.00021114,85484.0,85483.0,2.60268647]
[1742469484667,0.01190914,85484.0,85483.0,0.72549609]
[1742469484863,0.08910914,85484.0,85483.0,0.72549609]
[1742469485070,0.13470914,85484.0,85483.0,0.0113388]
[1742469485473,0.13470914,85484.0,85483.0,0.2570008]
[1742469485474,0.12301114,85484.0,85483.0,0.2570008]
[1742469485631,0.12301114,85484.0,85483.0,0.2510008]
[1742469485831,0.12301114,85484.0,85483.0,0.2460008]
[1742469486041,0.12301114,85484.0,85483.0,0.2510008]
[1742469486251,0.07741114,85484.0,85483.0,0.2510008]
[1742469487306,0.07741114,85484.0,85483.0,0.2540008]
[1742469487756,0.09575512,85484.0,85483.0,0.2540008]
[1742469489735,0.01855512,85484.0,85483.0,0.2540008]
[1742469493933,0.00021114,85484.0,85483.0,0.67357583]
[1742469494411,0.00021114,85484.0,85483.0,2.17357583]
[1742469494549,0.00021114,85484.0,85483.0,2.58773312]
[1742469494947,0.00021114,85484.0,85483.0,2.58273312]
[1742469495156,0.00021114,85484.0,85483.0,2.58873312]
[1742469495838,0.00021114,85484.0,85483.0,2.57973312]
[1742469495968,0.00021114,85484.0,85483.0,2.58473312]
[1742469496907,0.01855375,85484.0,85483.0,2.59073312]
[1742469497434,0.01855375,85484.0,85483.0,1.09073312]
[1742469498221,0.01855375,85484.0,85483.0,1.10027397]
[1742469498422,0.01855375,85484.0,85483.0,1.09427397]
[1742469498601,0.01855375,85484.0,85483.0,1.10627397]
[1742469499019,0.01855375,85484.0,85483.0,2.60627397]
[1742469499721,0.01855375,85484.0,85483.0,2.68417397]
[1742469500142,0.0001694,85487.0,85486.0,0.545653]
[1742469500333,0.0001694,85487.0,85486.0,0.67976888]
[1742469500942,0.0001694,85487.0,85486.0,1.15536977]
[1742469501150,0.0001694,85487.0,85486.0,1.20486977]
[1742469501578,0.0001694,85487.0,85486.0,1.20986977]
[1742469501857,0.0001694,85487.0,85486.0,2.71586977]
[1742469502419,0.0001694,85487.0,85486.0,2.78746977]
[1742469502630,0.0001694,85487.0,85486.0,2.79346977]
[1742469504127,0.001,85489.0,85488.0,0.56018785]
[1742469504334,1e-06,85489.0,85488.0,0.74620648]
[1742469504545,0.01867835,85510.0,85509.0,0.545587]
[1742469504715,0.01867835,85510.0,85509.0,1.07931932]
[1742469505895,0.01867835,85510.0,85509.0,1.07939986]
[1742469506179,0.01867835,85510.0,85509.0,1.08439986]
[1742469506447,0.01867835,85510.0,85509.0,1.09039986]
[1742469506865,0.10127835,85510.0,85509.0,1.09039986]
[1742469507840,0.01867835,85510.0,85509.0,1.09039986]
[1742469508472,0.06767835,85510.0,85509.0,1.09039986]
[1742469509279,0.01867835,85510.0,85509.0,1.09039986]
[1742469509457,0.01867835,85510.0,85509.0,1.08439986]
[1742469510042,0.01867835,85510.0,85509.0,1.09333399]
[1742469510243,0.0003388,85510.0,85509.0,1.09333399]
[1742469510626,0.0003388,85510.0,85509.0,1.08833399]
[1742469510827,0.0003388,85510.0,85509.0,2.58833399]
[1742469511054,0.0003388,85510.0,85509.0,2.59833399]
[1742469511873,0.0003388,85510.0,85509.0,1.10998003]
[1742469512094,0.0783388,85510.0,85509.0,1.10998003]
[1742469512834,0.1241388,85510.0,85509.0,1.10998003]
[1742469514637,0.14247679,85510.0,85509.0,1.10998003]
[1742469515986,0.15417079,85510.0,85509.0,0.42423783]
[1742469516419,0.14247679,85510.0,85509.0,0.42423783]
[1742469516588,0.14247679,85510.0,85509.0,0.43593183]
[1742469517200,0.14247679,85510.0,85509.0,0.42593183]
[1742469517370,0.14247679,85510.0,85509.0,0.43393183]
[1742469518019,0.14247679,85510.0,85509.0,0.43193183]
[1742469519050,0.14247679,85510.0,85509.0,0.43693183]
[1742469520740,0.1241388,85510.0,85509.0,0.43693183]
[1742469520967,0.0003388,85510.0,85509.0,0.55650686]
[1742469521204,0.0003388,85510.0,85509.0,0.85650686]
[1742469521432,0.0003388,85510.0,85509.0,2.35650686]
[1742469524558,0.0003388,85510.0,85509.0,2.35150686]
[1742469524758,0.0003388,85510.0,85509.0,2.34550686]
[1742469524974,0.0003388,85510.0,85509.0,2.35150686]
[1742469525194,0.01867582,85510.0,85509.0,2.35650686]
[1742469525635,0.01867582,85510.0,85509.0,2.35050686]
[1742469526238,0.01867582,85510.0,85509.0,0.85050686]
[1742469527130,0.01867582,85510.0,85509.0,0.85650686]
[1742469532750,0.01867582,85510.0,85509.0,2.35650686]
[1742469533042,0.01867582,85510.0,85509.0,0.85650686]
[1742469533623,0.10067582,85510.0,85509.0,0.42523783]
[1742469533830,0.3279228,85510.0,85509.0,0.42523783]
[1742469534875,0.3279228,85510.0,85509.0,0.41423783]
[1742469535184,0.3279228,85510.0,85509.0,0.41923783]
[1742469535387,0.3279228,85510.0,85509.0,0.42223783]
[1742469535746,0.0823388,85510.0,85509.0,0.42223783]
[1742469536761,0.10067771,85510.0,85509.0,0.42223783]
[1742469536965,0.11237171,85510.0,85509.0,0.42223783]
[1742469537629,0.11237171,85510.0,85509.0,0.00808054]
[1742469538371,0.11237171,85510.0,85509.0,0.00308054]
[1742469538801,0.0940328,85510.0,85509.0,8.054e-05]
[1742469539021,0.0940328,85510.0,85509.0,0.00108054]
[1742469539779,0.0823388,85510.0,85509.0,0.00308054]
[1742469540559,0.0823388,85510.0,85509.0,0.01477454]
[1742469541599,0.0003388,85510.0,85509.0,0.01477454]
[1742469543794,0.0003388,85510.0,85509.0,0.00308054]
[1742469544541,0.1338328,85510.0,85509.0,0.00308054]
[1742469544974,0.25340783,85510.0,85509.0,0.00308054]
[1742469545901,0.27681891,85510.0,85509.0,0.00208054]
[1742469546759,0.27681891,85510.0,85509.0,8.054e-05]
[1742469547153,0.27681891,85510.0,85509.0,0.00108054]
[1742469547652,0.27681891,85510.0,85509.0,8.054e-05]
[1742469548856,0.27681891,85510.0,85483.0,0.0003388]
[1742469548857,0.372522,85497.0,85483.0,0.0003388]
[1742469549077,0.49209703,85497.0,85483.0,0.0003388]
[1742469550070,0.5104434,85497.0,85483.0,0.0003388]
[1742469550944,0.5104434,85497.0,85483.0,0.2343008]
[1742469551132,0.49309703,85497.0,85483.0,0.0003388]
[1742469551793,0.49409703,85497.0,85483.0,0.0003388]
[1742469552204,0.49309703,85497.0,85483.0,0.0003388]
[1742469552408,0.49609703,85497.0,85483.0,0.0003388]
[1742469552660,0.51971437,85497.0,85483.0,0.0003388]
[1742469552842,0.51671437,85497.0,85483.0,0.0003388]
[1742469553047,0.51871437,85497.0,85483.0,0.0003388]
[1742469553245,0.52171437,85497.0,85483.0,0.0003388]
[1742469554034,0.54006004,85497.0,85483.0,0.0003388]
[1742469556358,0.373959,85484.0,85483.0,0.0003388]
[1742469556487,0.49353403,85484.0,85483.0,0.0003388]
[1742469557122,0.51188211,85484.0,85483.0,0.0003388]
[1742469557725,0.53529674,85484.0,85483.0,0.0003388]
[1742469559220,0.53829674,85484.0,85483.0,0.0003388]
[1742469560160,0.53929674,85484.0,85483.0,0.0003388]
[1742469563606,0.52094866,85484.0,85483.0,0.0003388]
[1742469566442,0.53929655,85484.0,85483.0,0.0003388]
[1742469566654,0.5538374,85484.0,85483.0,0.0003388]
[1742469569448,0.5538374,85484.0,85483.0,0.0001708]
[1742469569662,0.53929655,85484.0,85483.0,0.0001708]
[1742469572123,0.52094866,85484.0,85483.0,0.0001708]
[1742469575130,0.53929649,85484.0,85483.0,0.0001708]
[1742469580116,0.27324303,85484.0,85483.0,0.0001708]
[1742469580320,0.2498284,85484.0,85483.0,0.0001708]
[1742469581662,0.0158674,85484.0,85483.0,0.0001708]
[1742469582061,0.0148674,85484.0,85483.0,0.0001708]
[1742469582864,0.0118674,85484.0,85483.0,0.0011708]
[1742469583434,0.0887674,85484.0,85483.0,0.0011708]
[1742469583664,0.10711418,85484.0,85483.0,0.0011708]
[1742469583874,0.03021418,85484.0,85483.0,0.0011708]
[1742469600885,0.23158921,85484.0,85483.0,0.0011708]
[1742469601133,0.21324243,85484.0,85483.0,0.0011708]
[1742469602328,0.21793243,85484.0,85483.0,0.0011708]
[1742469602530,0.21793243,85484.0,85483.0,0.0001708]
[1742469602871,0.21893243,85484.0,85483.0,0.0001708]
[1742469603276,0.2515184,85484.0,85483.0,0.0001708]
[1742469603752,0.2535184,85484.0,85483.0,0.0001708]
[1742469604121,0.26717465,85484.0,85483.0,0.0001708]
[1742469604351,0.26617465,85484.0,85483.0,0.0001708]
[1742469604467,0.26417465,85484.0,85483.0,0.0001708]
[1742469605687,0.25247665,85484.0,85483.0,0.0001708]
[1742469605890,0.03021365,85484.0,85483.0,0.0011708]
[1742469609812,0.0118674,85484.0,85483.0,0.0011708]
[1742469613279,0.03021342,85484.0,85483.0,0.0011708]
[1742469614350,0.0118674,85484.0,85483.0,0.0011708]
[1742469618573,0.03021363,85484.0,85483.0,0.0011708]
[1742469621077,0.01851563,85484.0,85483.0,0.0011708]
[1742469621643,0.03021363,85484.0,85483.0,0.0011708]
[1742469635222,0.01851563,85484.0,85483.0,0.0011708]
[1742469635592,0.0001694,85484.0,85483.0,0.0011708]
[1742469636197,0.0001694,85484.0,85483.0,0.0128688]
[1742469638760,0.01851341,85484.0,85483.0,0.0128688]
[1742469641155,0.03021141,85484.0,85483.0,0.0011708]
[1742469641363,0.2458284,85484.0,85483.0,0.0011708]
[1742469641562,0.36540343,85484.0,85483.0,0.0011708]
[1742469641778,0.49580343,85484.0,85483.0,0.0011708]
[1742469641986,0.50453343,85484.0,85483.0,0.0011708]
[1742469643247,0.52007428,85484.0,85483.0,0.0001708]
[1742469644139,0.54373526,85484.0,85483.0,0.0001708]
[1742469644307,0.56208411,85484.0,85483.0,0.0001708]
[1742469644745,0.56108411,85484.0,85483.0,0.0001708]
[1742469645124,0.56408411,85484.0,85483.0,0.0011708]
[1742469645755,0.56408411,85484.0,85483.0,0.0001708]
[1742469646121,0.55154326,85484.0,85483.0,0.0001708]
[1742469647039,0.37453823,85484.0,85483.0,0.0001708]
[1742469651540,0.29283823,85484.0,85483.0,0.0001708]
[1742469651757,0.26917725,85484.0,85483.0,0.0001708]
[1742469651947,0.2508284,85484.0,85483.0,0.0001708]
[1742469652497,0.2458284,85484.0,85483.0,0.0001708]
[1742469653045,0.2478284,85484.0,85483.0,0.0001708]
[1742469654812,0.26617619,85484.0,85483.0,0.0001708]
[1742469658519,0.02051719,85484.0,85483.0,0.0001708]
[1742469658720,0.02051719,85484.0,85483.0,0.0118688]
[1742469659813,0.01851719,85484.0,85483.0,0.0118688]
[1742469660105,0.01851719,85484.0,85483.0,0.0916688]
[1742469660312,0.0001694,85484.0,85483.0,0.51358328]
[1742469660514,0.0001694,85484.0,85483.0,0.50824383]
[1742469660717,0.0001693,85497.0,85483.0,0.50824383]
[1742469660718,0.0001693,85497.0,85496.0,0.545625]
[1742469660918,0.00022777,85497.0,85496.0,0.78960003]
[1742469661483,0.00022777,85497.0,85496.0,0.80414088]
[1742469661685,7.7e-07,85497.0,85496.0,1.24404048]
[1742469662724,0.001,85519.0,85509.0,0.545587]
[1742469662929,0.00039726,85510.0,85509.0,1.08006163]
[1742469663330,0.01873452,85510.0,85509.0,1.08006163]
[1742469664219,0.01873452,85510.0,85509.0,1.08506163]
[1742469664410,0.01873452,85510.0,85509.0,1.08006163]
[1742469665554,0.01973452,85510.0,85509.0,1.08206163]
[1742469665966,0.01973452,85510.0,85509.0,1.08806163]
[1742469666595,0.01873452,85510.0,85509.0,1.08606163]
[1742469667095,0.01973452,85510.0,85509.0,1.08806163]
[1742469669366,0.01973452,85510.0,85509.0,1.09684633]
[1742469670284,0.01973452,85510.0,85509.0,0.85125933]
[1742469670559,0.01973452,85510.0,85509.0,0.74355567]
[1742469670764,0.01973452,85510.0,85509.0,0.98914267]
[1742469670968,0.00139726,85510.0,85509.0,0.98914267]
[1742469671174,0.01309126,85510.0,85509.0,0.4316843]
[1742469671587,0.00039726,85510.0,85509.0,0.006]
[1742469671738,0.00039726,85510.0,85509.0,0.251587]
[1742469671946,0.00139726,85510.0,85509.0,0.253587]
[1742469672141,0.00139726,85510.0,85509.0,0.247587]
[1742469672368,0.00139726,85510.0,85509.0,0.002]
[1742469672576,0.00039726,85510.0,85509.0,0.017694]
[1742469672776,0.00039726,85510.0,85509.0,0.317694]
[1742469672936,0.00139726,85510.0,85509.0,0.313694]
[1742469673382,0.00139726,85510.0,85509.0,0.316694]
[1742469673846,0.01973552,85510.0,85509.0,0.316694]
[1742469677165,0.03142952,85510.0,85509.0,0.005]
[1742469677912,0.01973552,85510.0,85509.0,0.005]
[1742469679228,0.03142952,85510.0,85509.0,0.005]
[1742469680813,0.01209126,85510.0,85509.0,0.003]
[1742469681959,0.00039726,85510.0,85505.0,0.245597]
[1742469682155,0.24798326,85510.0,85502.0,0.011695]
[1742469682361,0.24798326,85510.0,85503.0,0.011695]
[1742469682589,0.24898326,85510.0,85503.0,0.011695]
[1742469682977,0.24698326,85510.0,85503.0,0.011695]
[1742469683392,0.24698326,85510.0,85498.0,0.245617]
[1742469683393,0.011695,85505.0,85498.0,0.245617]
[1742469683686,0.245601,85505.0,85499.0,0.011696]
[1742469684033,0.245601,85505.0,85498.0,0.011696]
[1742469684197,0.011695,85506.0,85500.0,0.245611]
[1742469684815,0.245598,85506.0,85500.0,0.245611]
[1742469685358,0.011695,85505.0,85498.0,0.245618]
[1742469685558,0.011695,85503.0,85496.0,0.00917961]
[1742469685755,0.011695,85500.0,85496.0,0.0003388]
[1742469685932,0.011695,85500.0,85497.0,0.0003388]
[1742469686100,0.011696,85498.0,85497.0,0.0003388]
[1742469686301,0.245619,85498.0,85497.0,0.0003388]
[1742469686519,0.245615,85500.0,85497.0,0.0003388]
[1742469686520,0.2639571,85500.0,85497.0,0.0003388]
[1742469686922,0.245619,85498.0,85497.0,0.0003388]
[1742469688416,0.245619,85498.0,85497.0,0.0013388]
[1742469688618,0.245619,85498.0,85497.0,0.0033388]
[1742469689068,0.245619,85498.0,85497.0,0.0013388]
[1742469689284,0.325919,85498.0,85497.0,0.0013388]
[1742469689481,0.325919,85498.0,85497.0,0.0033388]
[1742469691327,0.325919,85498.0,85497.0,0.0023388]
[1742469692056,0.325919,85498.0,85497.0,0.0003388]
[1742469692235,0.325919,85498.0,85497.0,0.0013388]
[1742469693201,0.11033951,85498.0,85497.0,0.0013388]
[1742469696037,0.11000891,85498.0,85497.0,0.0013388]
[1742469696521,0.22958394,85498.0,85497.0,0.0013388]
[1742469696727,0.27918394,85498.0,85497.0,0.0013388]
[1742469697695,0.27935334,85498.0,85497.0,0.0013388]
[1742469698149,0.27935334,85498.0,85497.0,0.0003388]
[1742469698566,0.27935334,85498.0,85497.0,0.0013388]
[1742469698978,0.27935334,85498.0,85496.0,0.0003388]
[1742469698979,0.56516285,85497.0,85496.0,6e-07]
[1742469699179,0.80563788,85497.0,85496.0,6e-07]
[1742469700141,0.80963788,85497.0,85496.0,6e-07]
[1742469700587,0.81463788,85497.0,85496.0,6e-07]